fUST/lending_fUST_20250928
["ID","MTS","AMOUNT","RATE_DAILY","PERIOD"]
[388067558,1758997886756,-984.98,0.00036712,9]
[388067559,1758997886765,-480.0,0.00036712,9]
[388067560,1758997886775,-243.5437221,0.00036712,9]
[388067561,1758997886784,-552.95777058,0.00036712,9]
[388067562,1758997886793,-804.55,0.00036712,9]
[388067563,1758997886802,-1202.92,0.00036712,9]
[388067564,1758997886812,-506.69,0.00036712,9]
[388067565,1758997886821,-480.0,0.00036712,9]
[388067566,1758997886830,-480.0,0.00036712,9]
[388067567,1758997886840,-670.7,0.00036712,9]
[388067568,1758997886849,-480.0,0.00036712,9]
[388067569,1758997886859,-484.44,0.00036712,9]
[388067570,1758997886868,-480.0,0.00036712,9]
[388067571,1758997886877,-480.0,0.00036712,9]
[388067572,1758997886886,-680.1,0.00036712,9]
[388067573,1758997886895,-480.0,0.00036712,9]
[388067574,1758997886904,-480.0,0.00036712,9]
[388067575,1758997886913,-480.0,0.00036712,9]
[388067576,1758997886923,-639.56,0.00036712,9]
[388067577,1758997886935,-967.3,0.00036712,9]
[388067578,1758997886952,-480.0,0.00036712,9]
[388067579,1758997886961,-480.0,0.00036712,9]
[388067580,1758997886974,-644.28,0.00036712,9]
[388067581,1758997886986,-480.0,0.00036712,9]
[388067582,1758997886995,-480.0,0.00036712,9]
[388067583,1758997887005,-735.13,0.00036712,9]
[388067584,1758997887015,-1008.33,0.00036712,9]
[388067585,1758997887024,-480.0,0.00036712,9]
[388067586,1758997887033,-495.64,0.00036712,9]
[388067587,1758997887043,-480.0,0.00036712,9]
[388067588,1758997887051,-480.0,0.00036712,9]
[388067589,1758997887060,-480.0,0.00036712,9]
[388067590,1758997887070,-482.28,0.00036712,9]
[388067591,1758997887079,-480.0,0.00036712,9]
[388067592,1758997887088,-480.0,0.00036712,9]
[388067593,1758997887097,-480.0,0.00036712,9]
[388067594,1758997887106,-527.25,0.00036712,9]
[388067595,1758997887115,-726.77,0.00036712,9]
[388067596,1758997887124,-676.62,0.00036712,9]
[388067597,1758997887133,-480.0,0.00036712,9]
[388067598,1758997887143,-349.23661078,0.00036712,9]
[388067599,1758997887152,-580.89,0.00036712,9]
[388067600,1758997887161,-480.0,0.00036712,9]
[388067601,1758997887170,-480.0,0.00036712,9]
[388067602,1758997887179,-1489.82,0.00036712,9]
[388067603,1758997887189,-480.0,0.00036712,9]
[388067604,1758997887198,-480.0,0.00036712,9]
[388067605,1758997887208,-1002.5,0.00036712,9]
[388067606,1758997887217,-709.35,0.00036712,9]
[388067607,1758997887226,-480.0,0.00036712,9]
[388067608,1758997887236,-396.03748191,0.00036712,9]
[388067609,1758997887246,-480.0,0.00036712,9]
[388067610,1758997887256,-480.0,0.00036712,9]
[388067611,1758997887265,-2233.22,0.00036712,9]
[388067612,1758997887275,-1680.74,0.00036712,9]
[388067613,1758997887285,-480.0,0.00036712,9]
[388067614,1758997887295,-480.0,0.00036712,9]
[388067615,1758997887304,-480.0,0.00036712,9]
[388067616,1758997887313,-1886.14,0.00036712,9]
[388067617,1758997887322,-480.0,0.00036712,9]
[388067618,1758997887331,-1218.71,0.00036712,9]
[388067619,1758997887340,-480.0,0.00036712,9]
[388067620,1758997887349,-480.0,0.00036712,9]
[388067621,1758997887359,-480.0,0.00036712,9]
[388067622,1758997887368,-480.0,0.00036712,9]
[388067623,1758997887378,-1327.72,0.00036712,9]
[388067624,1758997887387,-603.5491858,0.00036712,9]
[388067625,1758997887397,-1128.34,0.00036712,9]
[388067626,1758997887408,-480.0,0.00036712,9]
[388067627,1758997887420,-480.0,0.00036712,9]
[388067628,1758997887429,-480.0,0.00036712,9]
[388067629,1758997887438,-2258.67,0.00036712,9]
[388067630,1758997887448,-165.78603449,0.00036712,9]
[388067631,1758997887458,-700.85,0.00036712,9]
[388067632,1758997887467,-453.9492254,0.00036712,9]
[388067633,1758997887477,-568.42122971,0.00036712,9]
[388067634,1758997887487,-1174.22,0.00036712,9]
[388067635,1758997887496,-2335.56,0.00036712,9]
[388067636,1758997887505,-498.97633726,0.00036712,9]
[388067637,1758997887514,-560.18,0.00036712,9]
[388067638,1758997887523,-480.0,0.00036712,9]
[388067639,1758997887533,-480.0,0.00036712,9]
[388067640,1758997887543,-709.38,0.00036712,9]
[388067641,1758997887553,-480.0,0.00036712,9]
[388067642,1758997887562,-2457.12,0.00036712,9]
[388067643,1758997887571,-568.54575702,0.00036712,9]
[388067644,1758997887600,-417.71424298,0.00036712,9]
[388067645,1758997887609,-33.93114289,0.00036712,9]
[388067646,1758997889445,-446.06885711,0.00036712,9]
[388067647,1758997889456,-1938.12,0.00036712,9]
[388067648,1758997889465,-870.12,0.00036712,9]
[388067649,1758997889475,-480.0,0.00036712,9]
[388067650,1758997889484,-804.13,0.00036712,9]
[388067651,1758997889494,-480.0,0.00036712,9]
[388067652,1758997889504,-480.0,0.00036712,9]
[388067653,1758997889514,-1128.38,0.00036712,9]
[388067654,1758997889524,-480.0,0.00036712,9]
[388067655,1758997889534,-726.2,0.00036712,9]
[388067656,1758997889545,-480.0,0.00036712,9]
[388067657,1758997889555,-1183.73,0.00036712,9]
[388067658,1758997889565,-1375.25114289,0.00036712,9]
[388067659,1758997889655,-361.54885711,0.00036712,9]
[388067660,1758997889664,-448.64771412,0.00036712,7]
[388067661,1758997889673,-542.71,0.00036712,9]
[388067662,1758997889684,-480.0,0.00036712,9]
[388067663,1758997889693,-480.0,0.00036712,9]
[388067664,1758997889703,-480.0,0.00036712,9]
[388067665,1758997889713,-527.17,0.00036712,9]
[388067666,1758997889722,-480.0,0.00036712,9]
[388067667,1758997889732,-558.41286413,0.00036712,9]
[388067668,1758997889742,-1084.07,0.00036712,9]
[388067669,1758997889751,-480.0,0.00036712,9]
[388067670,1758997889760,-480.0,0.00036712,9]
[388067671,1758997889770,-1242.03,0.00036712,9]
[388067672,1758997889780,-480.0,0.00036712,9]
[388067673,1758997889790,-864.21,0.00036712,9]
[388067674,1758997889799,-480.0,0.00036712,9]
[388067675,1758997889808,-654.96,0.00036712,9]
[388067676,1758997889818,-480.0,0.00036712,9]
[388067677,1758997889827,-704.03,0.00036712,9]
[388067678,1758997889837,-203.89,0.00036712,9]
[388067679,1758997889846,-4892.14123546,0.00036712,9]
[388067680,1758997890440,258.19375905,0.00024,2]
[388067681,1758997890836,5000.0,0.00024,2]
[388067682,1758997923661,500.0,0.000239,2]
[388067683,1758997946676,160.0,0.00024,2]
[388067684,1758998031837,206.8266531,0.00023943,2]
[388067685,1758998037250,169.05198276,0.000239,2]
[388067686,1758998099722,2205.93760509,0.00024,2]
[388067687,1758998099747,2794.06239491,0.00024,2]
[388067688,1758998122758,5000.0,0.00024,2]
[388067689,1758998127034,-300.0,0.00024,2]
[388067690,1758998127063,-300.0,0.00024,2]
[388067691,1758998127090,-300.0,0.00024,2]
[388067692,1758998127120,-517.75355587,0.00024,2]
[388067693,1758998127147,-160.0,0.00024,2]
[388067694,1758998138030,4053.57850111,0.00024,2]
[388067695,1758998145954,2790.92438715,0.00024,2]
[388067696,1758998145977,2209.07561285,0.00024,2]
[388067697,1758998153995,5000.0,0.00024,2]
[388067698,1758998170259,2790.93438715,0.00024,2]
[388067699,1758998170286,2209.06561285,0.00024,2]
[388067700,1758998178014,5000.0,0.00024,2]
[388067701,1758998193757,2790.94438715,0.00024,2]
[388067702,1758998193780,2209.05561285,0.00024,2]
[388067703,1758998195589,2370.3170525,0.00023843,2]
[388067704,1758998201521,5000.0,0.00024,2]
[388067705,1758998216489,420.63733465,0.00024,2]
[388067706,1758998216509,4579.36266535,0.00024,2]
[388067707,1758998224515,5000.0,0.00024,2]
[388067708,1758998235116,300.0,0.00024,2]
[388067709,1758998239754,120.64733465,0.00024,2]
[388067710,1758998239777,4879.35266535,0.00024,2]
[388067711,1758998247596,5000.0,0.00024,2]
[388067712,1758998251077,120.65733465,0.00023489,2]
[388067713,1758998251098,6749.15495145,0.00023489,2]
[388067714,1758998263343,3250.85504855,0.00024,2]
[388067715,1758998263365,1749.14495145,0.00024,2]
[388067716,1758998264927,224.45236786,0.00023856,12]
[388067717,1758998271229,5000.0,0.00024,2]
[388067718,1758998280095,536.51,0.0001812,2]
[388067719,1758998280427,536.51,0.0001812,2]
[388067720,1758998280708,536.51,0.0001812,2]
[388067721,1758998287044,1416.88268069,0.00024,2]
[388067722,1758998287066,3583.11731931,0.00024,2]
[388067723,1758998295485,5000.0,0.00024,2]
[388067724,1758998297931,167.19295,0.00011734,2]
[388067726,1758998304008,1249.69973069,0.00023469,2]
[388067727,1758998304030,10000.01,0.00023469,2]
[388067728,1758998304052,10000.01,0.00023469,2]
[388067729,1758998304075,10000.01,0.00023469,2]
[388067730,1758998304098,2255.42729991,0.00023469,2]
[388067731,1758998304814,3298.05701333,0.00024,2]
[388067732,1758998312805,4446.52568676,0.00024,2]
[388067733,1758998312828,553.47431324,0.00024,2]
[388067734,1758998320917,5000.0,0.00024,2]
[388067735,1758998329216,4203.45103586,0.00024,2]
[388067736,1758998337079,243.0846509,0.00024,2]
[388067737,1758998337101,4756.9153491,0.00024,2]
[388067738,1758998350401,153.0,9.1e-07,2]
[388067739,1758998351507,153.0,9.1e-07,2]
[388067740,1758998360827,5000.0,0.000234,2]
[388067741,1758998383013,5000.0,0.000234,2]
[388067742,1758998405138,5000.0,0.000234,2]
[388067743,1758998416031,300.0,0.000234,2]
[388067744,1758998427122,300.0,0.000234,2]
[388067745,1758998428048,5000.0,0.000234,2]
[388067746,1758998439305,300.0,0.000234,2]
[388067747,1758998450109,5000.0,0.000234,2]
[388067748,1758998472281,5000.0,0.000234,2]
[388067749,1758998476996,208.58758934,0.000234,2]
[388067750,1758998495502,5000.0,0.000234,2]
[388067751,1758998518177,5000.0,0.000234,2]
[388067752,1758998530754,1000.0,0.00023375,2]
[388067753,1758998540799,5000.0,0.000234,2]
[388067754,1758998548983,5000.0,0.000234,2]
[388067755,1758998565439,5000.0,0.000234,2]
[388067756,1758998573233,5000.0,0.000234,2]
[388067757,1758998588422,5000.0,0.000234,2]
[388067758,1758998596214,5000.0,0.000234,2]
[388067759,1758998611457,5000.0,0.000234,2]
[388067760,1758998619851,1852.61794839,0.000234,2]
[388067761,1758998635572,5000.0,0.000234,2]
[388067762,1758998635621,150.0,0.00023397,2]
[388067763,1758998637974,-223.516538,0.00023454,2]
[388067764,1758998647905,-300.0,0.00023485,2]
[388067765,1758998658971,5000.0,0.000234,2]
[388067766,1758998659814,361.08636947,0.000234,2]
[388067767,1758998677938,-7868.31118974,0.00023486,2]
[388067768,1758998678044,-10000.01,0.00023486,2]
[388067769,1758998678179,-10000.01,0.00023486,2]
[388067770,1758998678301,-10000.01,0.00023486,2]
[388067771,1758998681887,5000.0,0.000234,2]
[388067772,1758998688059,-540.13304104,0.00023485,2]
[388067773,1758998688131,-500.0,0.00023485,2]
[388067774,1758998688159,-422.33,0.00023485,2]
[388067775,1758998688186,-352.85947068,0.00023485,2]
[388067776,1758998688214,-500.0,0.00023485,2]
[388067777,1758998688241,-500.0,0.00023485,2]
[388067778,1758998688270,-500.0,0.00023485,2]
[388067779,1758998688297,-500.0,0.00023485,2]
[388067780,1758998688325,-500.0,0.00023485,2]
[388067781,1758998688353,-620.68211066,0.00023485,2]
[388067782,1758998688470,-500.0,0.00023485,2]
[388067783,1758998688499,-240.0559688,0.00023485,2]
[388067784,1758998688529,-500.0,0.00023485,2]
[388067785,1758998688554,-500.0,0.00023485,2]
[388067786,1758998688581,-638.93044253,0.00023485,2]
[388067787,1758998688609,-334.99866269,0.00023485,2]
[388067788,1758998695696,666.0,0.00023472,2]
[388067789,1758998704593,3906.03985196,0.00023485,2]
[388067790,1758998704620,1093.96014804,0.00023485,2]
[388067791,1758998712980,672.55906959,0.00023485,2]
[388067792,1758998713556,300.0,0.000234,2]
[388067793,1758998728680,5000.0,0.00023485,2]
[388067794,1758998751295,2933.49078237,0.00023485,2]
[388067795,1758998751316,2066.50921763,0.00023485,2]
[388067796,1758998758938,1972.2293749,0.00023449,2]
[388067797,1758998759639,4327.44093041,0.00023485,2]
[388067798,1758998775320,1633.83047706,0.00023485,2]
[388067799,1758998775343,3366.16952294,0.00023485,2]
[388067800,1758998776629,290.6963282,0.00023485,2]
[388067801,1758998776774,500.0,0.00023485,2]
[388067802,1758998776809,500.0,0.00023485,2]
[388067803,1758998776845,500.0,0.00023485,2]
[388067804,1758998776873,378.52741527,0.00023485,2]
[388067805,1758998776907,380.24416128,0.00023485,2]
[388067806,1758998783109,4084.37257231,0.00023485,2]
[388067807,1758998783132,915.62742769,0.00023485,2]
[388067808,1758998798730,5000.0,0.00023485,2]
[388067810,1758998807111,4084.38257231,0.00023485,2]
[388067811,1758998807133,915.61742769,0.00023485,2]
[388067812,1758998815101,-288.65703505,0.00023486,2]
[388067813,1758998822143,5000.0,0.00023485,2]
[388067814,1758998830032,4084.39257231,0.00023454,2]
[388067815,1758998830055,10000.01,0.00023454,2]
[388067816,1758998830077,9611.15129259,0.00023454,2]
[388067817,1758998845681,388.85870741,0.00023485,2]
[388067818,1758998845703,4611.14129259,0.00023485,2]
[388067819,1758998854905,5000.0,0.00023485,2]
[388067820,1758998866121,160.0,0.00023485,2]
[388067821,1758998870694,228.86870741,0.00023485,2]
[388067822,1758998870717,4771.13129259,0.00023485,2]
[388067823,1758998878491,5000.0,0.00023485,2]
[388067824,1758998893738,228.87870741,0.00023485,2]
[388067825,1758998893760,4771.12129259,0.00023485,2]
[388067826,1758998901552,5000.0,0.00023485,2]
[388067827,1758998916777,228.88870741,0.00023485,2]
[388067828,1758998916800,4771.11129259,0.00023485,2]
[388067829,1758998924670,5000.0,0.00023485,2]
[388067830,1758998939855,228.89870741,0.00023485,2]
[388067831,1758998939879,4771.10129259,0.00023485,2]
[388067832,1758998947734,5000.0,0.00023485,2]
[388067833,1758998954107,-3594.42589851,0.00023486,2]
[388067834,1758998954135,-500.0,0.000235,2]
[388067835,1758998954160,-230.8039011,0.00023611,2]
[388067836,1758998954186,-430.82243906,0.0002415,5]
[388067837,1758998954214,-1200.0,0.00024465,2]
[388067838,1758998954243,-1200.0,0.00024468,2]
[388067839,1758998954268,-300.0,0.00024468,2]
[388067840,1758998954293,-270.0,0.00024469,2]
[388067841,1758998954317,-1947.12720092,0.00024469,2]
[388067842,1758998969088,-2107.37413033,0.00024224,2]
[388067843,1758999003680,500.0,0.000235,2]
[388067870,1758999031732,-2892.62586967,0.00024224,2]
[388067871,1758999031742,-421.69227282,0.00024369,4]
[388067873,1758999031751,-521.240613,0.00024411,2]
[388067875,1758999031760,-300.0,0.00024467,2]
[388067877,1758999031770,-221.0,0.00024468,2]
[388067879,1758999031779,-300.0,0.00024468,2]
[388067881,1758999031789,-173.0,0.00024468,2]
[388067883,1758999031799,-1200.0,0.00024468,2]
[388067885,1758999031810,-48052.87279908,0.00024469,2]
[388067887,1758999031820,-572.40233386,0.00024469,2]
[388067889,1758999031829,-203.8887403,0.00024469,2]
[388067891,1758999031838,-182.1033825,0.00024469,2]
[388067893,1758999031849,-208.91601792,0.00024469,2]
[388067895,1758999031858,-204.59895898,0.0002455,2]
[388067897,1758999031868,-19225.5773571,0.00024562,2]
[388067899,1758999031877,-164.0,0.00024575,13]
[388067901,1758999031887,-1000.0,0.00024596,2]
[388067903,1758999031896,-486.46148311,0.00024746,7]
[388067905,1758999031905,-1500.0,0.00025692,2]
[388067907,1758999031916,-500.0,0.00026233,2]
[388067911,1758999031925,-151.65493702,0.00026316,2]
[388067912,1758999031934,-151.0,0.00026331,2]
[388067915,1758999031945,-151.0,0.00026331,2]
[388067917,1758999031954,-151.0,0.00026331,2]
[388067919,1758999031964,-151.0,0.00026331,2]
[388067921,1758999031973,-205.37402768,0.00026331,2]
[388067922,1758999031982,-151.0,0.00026331,2]
[388067924,1758999031991,-151.0,0.00026331,2]
[388067926,1758999032001,-305.1580492,0.00026351,2]
[388067928,1758999032010,-3755.58,0.00026515,2]
[388067930,1758999032019,-152.31519665,0.0002652,2]
[388067932,1758999032031,-151.0,0.0002652,2]
[388067934,1758999032040,-151.0,0.0002652,2]
[388067936,1758999032051,-1680.0,0.00026522,2]
[388067938,1758999032061,-420.0,0.00026522,2]
[388067940,1758999032071,-500.0,0.00026605,2]
[388067941,1758999032080,-151.0,0.00026605,2]
[388067942,1758999032089,-151.0,0.00026605,2]
[388067943,1758999032099,-230.14681056,0.00026605,2]
[388067944,1758999032110,-500.0,0.00026605,2]
[388067945,1758999032119,-151.0,0.00026605,2]
[388067946,1758999032129,-152.16299636,0.00026605,2]
[388067947,1758999032138,-151.0,0.00026605,2]
[388067948,1758999032147,-151.63955514,0.00026605,2]
[388067949,1758999032156,-151.0,0.00026605,2]
[388067950,1758999032166,-151.0,0.00026605,2]
[388067951,1758999032175,-999.0,0.00026605,2]
[388067953,1758999032185,-151.0,0.00026605,2]
[388067955,1758999032194,-230.82272375,0.00026605,2]
[388067956,1758999032203,-151.15484948,0.00026605,2]
[388067957,1758999032212,-151.0,0.00026605,2]
[388067958,1758999032222,-151.0,0.00026605,2]
[388067959,1758999032231,-151.0,0.00026605,2]
[388067961,1758999032240,-500.0,0.00026605,2]
[388067963,1758999032250,-151.0,0.00026605,2]
[388067965,1758999032259,-500.0,0.00026605,2]
[388067966,1758999032268,-151.0,0.00026605,2]
[388067968,1758999032277,-490.62,0.00026619,3]
[388067970,1758999032286,-41534.44472962,0.00026629,2]
[388067973,1758999032298,-2781.09999522,0.00026629,2]
[388067975,1758999032313,-29176.09907886,0.00026629,2]
[388067977,1758999032323,-588.0,0.00026642,2]
[388067979,1758999032332,-634.15303963,0.00026781,2]
[388067981,1758999032341,-1005.44154091,0.00026788,2]
[388067983,1758999032350,-152.1492464,0.00026794,2]
[388067985,1758999032359,-282.18366163,0.00026794,2]
[388067987,1758999032368,-223.516538,0.00026878,2]
[388067989,1758999032377,-500.0,0.00026879,2]
[388067991,1758999032387,-151.0,0.00026879,2]
[388067998,1758999032439,-151.0,0.00026879,2]
[388068000,1758999032454,-500.0,0.00026879,2]
[388068002,1758999032463,-151.0,0.00026879,2]
[388068004,1758999032472,-151.0,0.00026879,2]
[388068006,1758999032481,-166.78245138,0.00026879,2]
[388068007,1758999032490,-151.0,0.00026879,2]
[388068008,1758999032499,-999.0,0.00026879,2]
[388068010,1758999032508,-151.0,0.00026879,2]
[388068012,1758999032517,-151.0,0.00026879,2]
[388068014,1758999032526,-151.0,0.00026879,2]
[388068016,1758999032535,-151.0,0.00026879,2]
[388068018,1758999032544,-500.0,0.00026879,2]
[388068019,1758999032553,-151.0,0.00026879,2]
[388068020,1758999032562,-639.11679082,0.00026879,2]
[388068021,1758999032571,-151.0,0.00026879,2]
[388068022,1758999032579,-490.65,0.0002698,3]
[388068023,1758999032588,-100000.0,0.0002699,2]
[388068024,1758999032597,-269.32847076,0.00027153,2]
[388068025,1758999032605,-151.0,0.00027153,2]
[388068026,1758999032614,-245.0,0.00027153,2]
[388068027,1758999032623,-500.0,0.00027153,2]
[388068028,1758999032632,-151.0,0.00027153,2]
[388068029,1758999032641,-198.0,0.00027153,2]
[388068030,1758999032650,-151.0,0.00027153,2]
[388068031,1758999032659,-999.0,0.00027153,2]
[388068032,1758999032668,-151.0,0.00027153,2]
[388068033,1758999032677,-151.0,0.00027153,2]
[388068034,1758999032686,-151.0,0.00027153,2]
[388068035,1758999032703,-500.0,0.00027153,2]
[388068036,1758999032715,-198.0,0.00027153,2]
[388068037,1758999032724,-151.0,0.00027153,2]
[388068038,1758999032732,-250.692,0.00027167,15]
[388068039,1758999032741,-500.0,0.0002725,2]
[388068040,1758999032750,-500.0,0.0002728,2]
[388068041,1758999032760,-500.0,0.0002728,2]
[388068042,1758999032770,-500.0,0.0002728,2]
[388068043,1758999032779,-151.0,0.00027427,2]
[388068044,1758999032788,-640.41758904,0.00027427,2]
[388068045,1758999032797,-151.25541107,0.00027427,2]
[388068046,1758999032806,-151.0,0.00027427,2]
[388068047,1758999032815,-999.0,0.00027427,2]
[388068049,1758999032824,-151.0,0.00027427,2]
[388068050,1758999032833,-300.86364638,0.00027427,2]
[388068051,1758999032843,-500.0,0.00027427,2]
[388068052,1758999032852,-198.00504305,0.00027427,2]
[388068054,1758999032862,-500.0,0.00027486,5]
[388068056,1758999032871,-500.0,0.00027567,5]
[388068058,1758999032881,-500.0,0.00027567,5]
[388068059,1758999032890,-500.0,0.00027629,5]
[388068062,1758999032900,-1326.5912115,0.00027688,2]
[388068063,1758999032909,-201.08270782,0.00027701,2]
[388068066,1758999032919,-291.37557743,0.00027701,2]
[388068068,1758999032929,-999.0,0.00027701,2]
[388068070,1758999032938,-245.0,0.00027701,2]
[388068071,1758999032948,-500.0,0.00027701,2]
[388068073,1758999032958,-17291.99942915,0.00027715,2]
[388068075,1758999032967,-73491.6438037,0.00027788,2]
[388068077,1758999032976,-437.82570095,0.00027798,2]
[388068079,1758999032986,-1000.0,0.00027828,5]
[388068081,1758999032995,-463.64877737,0.00027828,5]
[388068084,1758999033007,-536.35122263,0.00027828,5]
[388068086,1758999033016,-1005.04014538,0.00027828,5]
[388068088,1758999033026,-999.0,0.00027975,2]
[388068089,1758999033040,-500.0,0.00027975,2]
[388068091,1758999033049,-39808.56901629,0.0002798,2]
[388068093,1758999033061,-1000.0,0.0002798,2]
[388068101,1758999037775,-106174.71859071,0.0002798,2]
[388068102,1758999037784,-232.18592736,0.0002798,2]
[388068103,1758999037794,-233.76631357,0.00028,3]
[388068104,1758999037802,-500.0,0.0002805,5]
[388068105,1758999037811,-504.66637354,0.0002806,5]
[388068106,1758999037821,-523.22656174,0.0002806,5]
[388068107,1758999037830,-500.0,0.0002806,5]
[388068108,1758999037839,-500.0,0.0002806,5]
[388068109,1758999037848,-500.0,0.0002806,5]
[388068110,1758999037857,-500.0,0.0002806,5]
[388068111,1758999037867,-549.28448857,0.00028079,2]
[388068112,1758999037876,-615.75483043,0.00028115,5]
[388068113,1758999037885,-1000.0,0.00028115,5]
[388068114,1758999037895,-1000.0,0.00028177,5]
[388068115,1758999037904,-999.0,0.00028249,2]
[388068116,1758999037914,-265.37793807,0.00028249,2]
[388068117,1758999037923,-500.0,0.0002834,5]
[388068118,1758999037933,-500.0,0.0002834,5]
[388068120,1758999037942,-500.0,0.0002834,3]
[388068121,1758999037952,-500.0,0.0002834,5]
[388068123,1758999037961,-500.0,0.0002834,5]
[388068125,1758999037971,-500.0,0.0002834,5]
[388068127,1758999037980,-1500.0,0.00028376,5]
[388068129,1758999037989,-1598.23318118,0.00028376,5]
[388068131,1758999037998,-500.0,0.00028498,2]
[388068133,1758999038008,-500.0,0.00028498,2]
[388068135,1758999038017,-500.0,0.00028498,2]
[388068137,1758999038028,-500.0,0.00028498,2]
[388068139,1758999038040,-500.0,0.00028498,2]
[388068141,1758999038049,-500.0,0.00028498,2]
[388068142,1758999038058,-500.0,0.00028498,2]
[388068143,1758999038067,-500.0,0.00028498,2]
[388068144,1758999038078,-500.0,0.00028498,2]
[388068146,1758999038087,-500.0,0.00028498,2]
[388068148,1758999038096,-500.0,0.00028498,2]
[388068150,1758999038107,-500.0,0.00028498,2]
[388068152,1758999038116,-999.0,0.00028523,2]
[388068154,1758999038125,-1000.0,0.00028598,5]
[388068156,1758999038135,-1000.0,0.00028608,5]
[388068158,1758999038143,-1500.0,0.00028663,5]
[388068160,1758999038153,-500.0,0.00028724,5]
[388068162,1758999038162,-2351.0,0.00028747,2]
[388068164,1758999038171,-587.0,0.00028747,2]
[388068166,1758999038180,-999.0,0.00028797,2]
[388068168,1758999038190,-222.75175897,0.0002888,2]
[388068170,1758999038199,-500.0,0.00028888,5]
[388068172,1758999038208,-1000.0,0.00028888,3]
[388068174,1758999038218,-1000.0,0.00028888,5]
[388068176,1758999038226,-2000.0,0.00028924,5]
[388068178,1758999038235,-245.44121266,0.00029,5]
[388068180,1758999038244,-233.76631357,0.00029,10]
[388068182,1758999038252,-233.76631357,0.00029,10]
[388068184,1758999038262,-1658.6,0.00029,2]
[388068186,1758999038271,-999.0,0.00029071,2]
[388068188,1758999038281,-73491.6438037,0.0002912,2]
[388068190,1758999038291,-1513.30869825,0.00029146,5]
[388068191,1758999038300,-1500.0,0.00029156,5]
[388068192,1758999038310,-2000.0,0.00029211,5]
[388068193,1758999038319,-999.0,0.00029345,2]
[388068194,1758999038328,-971.31682989,0.00029436,3]
[388068195,1758999038340,-1500.0,0.00029436,5]
[388068196,1758999038350,-2500.0,0.00029472,5]
[388068197,1758999038360,-999.0,0.00029619,2]
[388068198,1758999038370,-2500.0,0.00029758,5]
[388068199,1758999038381,-975.52925169,0.00029807,2]
[388068200,1758999038390,-999.0,0.00029893,2]
[388068201,1758999038399,-2000.0,0.00029984,5]
[388068202,1758999038409,-348.27889104,0.0002999,2]
[388068203,1758999038419,-166292.65,0.0003,2]
[388068204,1758999038429,-200.0,0.0003,10]
[388068205,1758999038439,-200.0,0.0003,10]
[388068207,1758999038448,-200.0,0.0003,10]
[388068209,1758999038458,-200.0,0.0003,10]
[388068211,1758999038467,-200.0,0.0003,10]
[388068213,1758999038476,-200.0,0.0003,10]
[388068215,1758999038486,-200.0,0.0003,10]
[388068217,1758999038495,-200.0,0.0003,10]
[388068219,1758999038505,-247.465403,0.0003,10]
[388068220,1758999038515,-1115.46,0.0003,2]
[388068221,1758999038525,-3000.0,0.0003002,5]
[388068222,1758999038534,-160.0,0.00030055,38]